[Event "Live Chess"]
[Site "Chess.com"]
[Date "2024.06.01"]
[Round "-"]
[White "CCGoodKnightRookie"]
[Black "road2gm5000"]
[Result "1-0"]
[WhiteElo "2362"]
[BlackElo "1078"]
[TimeControl "300"]
[EndTime "14:18:50 PDT"]
[Termination "CCGoodKnightRookie won by resignation"]

1. d4 {[%clk 0:04:56.1]} 1... d5 {[%clk 0:04:58.7]} 2. Nc3 {[%clk 0:04:54.7]}
2... Nf6 {[%clk 0:04:56.2]} 3. Bf4 {[%clk 0:04:54]} 3... Bf5 {[%clk 0:04:54.6]}
4. e3 {[%clk 0:04:53.1]} 4... e6 {[%clk 0:04:53.7]} 5. Nf3 {[%clk 0:04:52.2]}
5... Bd6 {[%clk 0:04:52.2]} 6. Ne5 {[%clk 0:04:51.6]} 6... Nc6 {[%clk
0:04:49.3]} 7. g4 {[%clk 0:04:51]} 7... Be4 {[%clk 0:04:41.9]} 8. f3 {[%clk
0:04:49.7]} 8... Bg6 {[%clk 0:04:41]} 9. h4 {[%clk 0:04:49.1]} 9... h6 {[%clk
0:04:36.7]} 10. Nxg6 {[%clk 0:04:46.1]} 10... fxg6 {[%clk 0:04:36.6]} 11. Bd3
{[%clk 0:04:45.6]} 11... Kf7 {[%clk 0:04:30.4]} 12. Bxd6 {[%clk 0:04:43.3]}
12... Qxd6 {[%clk 0:04:30.3]} 13. f4 {[%clk 0:04:40.8]} 13... Rhe8 {[%clk
0:04:20.9]} 14. Qf3 {[%clk 0:04:38.7]} 14... Nb4 {[%clk 0:04:15.6]} 15. g5
{[%clk 0:04:37]} 15... hxg5 {[%clk 0:04:11.8]} 16. hxg5 {[%clk 0:04:35.3]} 16...
Nxd3+ {[%clk 0:04:10.6]} 17. cxd3 {[%clk 0:04:34.3]} 17... Nh5 {[%clk
0:04:09.7]} 18. O-O-O {[%clk 0:04:28]} 18... c5 {[%clk 0:04:02]} 19. Rxh5 {[%clk
0:04:20.1]} 19... gxh5 {[%clk 0:03:59.6]} 20. Qxh5+ {[%clk 0:04:20]} 20... Kg8
{[%clk 0:03:55.2]} 21. g6 {[%clk 0:04:15.9]} 21... Kf8 {[%clk 0:03:51.8]} 22.
Qh8+ {[%clk 0:03:58.6]} 22... Ke7 {[%clk 0:03:50.1]} 23. Qxg7+ {[%clk
0:03:58.5]} 23... Kd8 {[%clk 0:03:45.8]} 24. dxc5 {[%clk 0:03:52.3]} 24... Qxc5
{[%clk 0:03:42.9]} 25. d4 {[%clk 0:03:51.7]} 25... Qe7 {[%clk 0:03:39.8]} 26.
Qe5 {[%clk 0:03:49.9]} 26... Kd7 {[%clk 0:03:33.7]} 27. Rh1 {[%clk 0:03:45.5]}
27... Rg8 {[%clk 0:03:31.1]} 28. Rh7 {[%clk 0:03:43.5]} 1-0

[Event "Live Chess"]
[Site "Chess.com"]
[Date "2024.06.01"]
[Round "-"]
[White "AndrewBak1"]
[Black "ProfPoisson"]
[Result "1-0"]
[WhiteElo "1871"]
[BlackElo "1287"]
[TimeControl "300"]
[EndTime "14:19:13 PDT"]
[Termination "AndrewBak1 won by checkmate"]

1. e4 {[%clk 0:04:58]} 1... e5 {[%clk 0:04:57.3]} 2. Nf3 {[%clk 0:04:56.9]} 2...
Nf6 {[%clk 0:04:55.8]} 3. Nxe5 {[%clk 0:04:54.9]} 3... Nxe4 {[%clk 0:04:54.3]}
4. Qe2 {[%clk 0:04:53.1]} 4... Qe7 {[%clk 0:04:53]} 5. Qxe4 {[%clk 0:04:50.7]}
5... d6 {[%clk 0:04:51.3]} 6. d4 {[%clk 0:04:47.1]} 6... dxe5 {[%clk 0:04:48.9]}
7. Qxe5 {[%clk 0:04:46.3]} 7... Qxe5+ {[%clk 0:04:46.3]} 8. dxe5 {[%clk
0:04:46.2]} 8... Nc6 {[%clk 0:04:44.4]} 9. f4 {[%clk 0:04:44.5]} 9... Bf5 {[%clk
0:04:42.6]} 10. Bd3 {[%clk 0:04:42.8]} 10... Bxd3 {[%clk 0:04:38.9]} 11. cxd3
{[%clk 0:04:42.7]} 11... Nb4 {[%clk 0:04:36.9]} 12. Na3 {[%clk 0:04:38.7]} 12...
Nxd3+ {[%clk 0:04:29.3]} 13. Ke2 {[%clk 0:04:38]} 13... O-O-O {[%clk 0:04:27.5]}
14. Be3 {[%clk 0:04:33.1]} 14... Bxa3 {[%clk 0:04:19.7]} 15. bxa3 {[%clk
0:04:31.9]} 15... Rhe8 {[%clk 0:04:09.2]} 16. Rhd1 {[%clk 0:04:26.2]} 16... f6
{[%clk 0:04:04.4]} 17. Rxd3 {[%clk 0:04:24.3]} 17... fxe5 {[%clk 0:03:57.8]} 18.
Rxd8+ {[%clk 0:04:21.3]} 18... Rxd8 {[%clk 0:03:54.9]} 19. fxe5 {[%clk
0:04:19.7]} 19... Re8 {[%clk 0:03:45.5]} 20. Bf4 {[%clk 0:04:15.3]} 20... h6
{[%clk 0:03:40]} 21. h4 {[%clk 0:04:13.2]} 21... g5 {[%clk 0:03:37.9]} 22. hxg5
{[%clk 0:04:09.8]} 22... hxg5 {[%clk 0:03:36.7]} 23. Bg3 {[%clk 0:04:09.1]}
23... Kd7 {[%clk 0:03:33.5]} 24. Rf1 {[%clk 0:04:04.2]} 24... c5 {[%clk
0:03:31]} 25. Rf7+ {[%clk 0:04:01.3]} 25... Kc6 {[%clk 0:03:28.1]} 26. Kd3
{[%clk 0:03:59.9]} 26... b5 {[%clk 0:03:26.4]} 27. Rxa7 {[%clk 0:03:56.7]} 27...
Rd8+ {[%clk 0:03:23.4]} 28. Ke4 {[%clk 0:03:55.9]} 28... Rd4+ {[%clk 0:03:21.2]}
29. Kf5 {[%clk 0:03:54.4]} 29... c4 {[%clk 0:03:16.4]} 30. e6 {[%clk 0:03:52.4]}
30... c3 {[%clk 0:03:13]} 31. Rc7+ {[%clk 0:03:51.5]} 31... Kb6 {[%clk
0:03:09.3]} 32. Rxc3 {[%clk 0:03:51.1]} 32... Rd5+ {[%clk 0:03:05]} 33. Kf6
{[%clk 0:03:49.9]} 33... Rd2 {[%clk 0:03:02]} 34. e7 {[%clk 0:03:47.7]} 34...
Rxg2 {[%clk 0:03:00.4]} 35. e8=Q {[%clk 0:03:45.5]} 35... b4 {[%clk 0:02:57.9]}
36. axb4 {[%clk 0:03:43.4]} 36... g4 {[%clk 0:02:55.4]} 37. Qc6+ {[%clk
0:03:41.1]} 37... Ka7 {[%clk 0:02:52.4]} 38. Ra3# {[%clk 0:03:40.3]} 1-0

[Event "Live Chess"]
[Site "Chess.com"]
[Date "2024.06.01"]
[Round "-"]
[White "FlyingChessKestrel13"]
[Black "f4nomore"]
[Result "1-0"]
[WhiteElo "2077"]
[BlackElo "1229"]
[TimeControl "300"]
[EndTime "14:20:20 PDT"]
[Termination "FlyingChessKestrel13 won by resignation"]

1. e4 {[%clk 0:04:57.4]} 1... g6 {[%clk 0:04:58.9]} 2. d4 {[%clk 0:04:55.8]}
2... Bg7 {[%clk 0:04:57.9]} 3. Nc3 {[%clk 0:04:53.9]} 3... d6 {[%clk 0:04:56.8]}
4. Nf3 {[%clk 0:04:52.5]} 4... Nf6 {[%clk 0:04:54.4]} 5. Bd3 {[%clk 0:04:51]}
5... O-O {[%clk 0:04:53.1]} 6. O-O {[%clk 0:04:49.8]} 6... Nbd7 {[%clk
0:04:51.8]} 7. Re1 {[%clk 0:04:49.1]} 7... b6 {[%clk 0:04:50.8]} 8. e5 {[%clk
0:04:48.3]} 8... dxe5 {[%clk 0:04:49.1]} 9. dxe5 {[%clk 0:04:47.7]} 9... Ng4
{[%clk 0:04:34.6]} 10. Bf4 {[%clk 0:04:41.9]} 10... e6 {[%clk 0:04:27.7]} 11. h3
{[%clk 0:04:39.9]} 11... Nh6 {[%clk 0:04:25.4]} 12. Bg5 {[%clk 0:04:38.5]} 12...
f6 {[%clk 0:04:15.6]} 13. exf6 {[%clk 0:04:37.1]} 13... Nxf6 {[%clk 0:04:12.5]}
14. Ne4 {[%clk 0:04:34.4]} 14... Nxe4 {[%clk 0:04:08.9]} 15. Bxd8 {[%clk
0:04:31.8]} 15... Rxd8 {[%clk 0:04:05.5]} 16. Rxe4 {[%clk 0:04:29.9]} 16... Bb7
{[%clk 0:03:59.5]} 17. Re1 {[%clk 0:04:27.4]} 17... c5 {[%clk 0:03:53.3]} 18.
Qe2 {[%clk 0:04:25.2]} 18... e5 {[%clk 0:03:39.1]} 19. Bc4+ {[%clk 0:04:22.6]}
19... Kh8 {[%clk 0:03:36.4]} 20. Nxe5 {[%clk 0:04:17.9]} 20... Re8 {[%clk
0:03:28.2]} 21. Nf7+ {[%clk 0:04:07.9]} 21... Nxf7 {[%clk 0:03:25.6]} 22. Qxe8+
{[%clk 0:04:07.4]} 22... Rxe8 {[%clk 0:03:22.9]} 23. Rxe8+ {[%clk 0:04:06.9]}
23... Bf8 {[%clk 0:03:21.2]} 24. Rxf8+ {[%clk 0:04:06.1]} 24... Kg7 {[%clk
0:03:20.1]} 25. Rxf7+ {[%clk 0:04:05.4]} 25... Kh6 {[%clk 0:03:18.6]} 26. Rxb7
{[%clk 0:04:05]} 1-0

[Event "Live Chess"]
[Site "Chess.com"]
[Date "2024.06.01"]
[Round "-"]
[White "nigelst"]
[Black "Ferrarifan27"]
[Result "0-1"]
[WhiteElo "1663"]
[BlackElo "2073"]
[TimeControl "300"]
[EndTime "14:20:33 PDT"]
[Termination "Ferrarifan27 won on time"]

1. e4 {[%clk 0:04:58.6]} 1... e5 {[%clk 0:04:45.8]} 2. Nf3 {[%clk 0:04:44.9]}
2... Nc6 {[%clk 0:04:44.3]} 3. Bb5 {[%clk 0:04:41.8]} 3... a6 {[%clk 0:04:40.4]}
4. Bxc6 {[%clk 0:04:40.5]} 4... dxc6 {[%clk 0:04:40.3]} 5. O-O {[%clk
0:04:39.1]} 5... Bg4 {[%clk 0:04:38.2]} 6. h3 {[%clk 0:04:37.3]} 6... h5 {[%clk
0:04:37.8]} 7. d3 {[%clk 0:04:31.1]} 7... Qf6 {[%clk 0:04:32.5]} 8. Be3 {[%clk
0:04:29.7]} 8... g5 {[%clk 0:04:26.3]} 9. Nbd2 {[%clk 0:04:26.4]} 9... Ne7
{[%clk 0:04:15.4]} 10. Bxg5 {[%clk 0:04:19.6]} 10... Bxf3 {[%clk 0:04:13]} 11.
Bxf6 {[%clk 0:04:18.4]} 11... Bxd1 {[%clk 0:04:10.6]} 12. Bxh8 {[%clk
0:04:17.2]} 12... Bxc2 {[%clk 0:04:08.9]} 13. Bxe5 {[%clk 0:04:12.6]} 13... Bxd3
{[%clk 0:04:07]} 14. Rfd1 {[%clk 0:04:05.9]} 14... O-O-O {[%clk 0:04:03.6]} 15.
Rac1 {[%clk 0:04:00.1]} 15... Be2 {[%clk 0:04:01.7]} 16. Bc3 {[%clk 0:03:46.1]}
16... Bxd1 {[%clk 0:03:58.9]} 17. Rxd1 {[%clk 0:03:45.1]} 17... Bh6 {[%clk
0:03:50.8]} 18. Kf1 {[%clk 0:03:40.5]} 18... Ng6 {[%clk 0:03:47.3]} 19. g3
{[%clk 0:03:38.5]} 19... c5 {[%clk 0:03:25.8]} 20. f4 {[%clk 0:03:36.6]} 20...
Nf8 {[%clk 0:03:08.5]} 21. Ke2 {[%clk 0:03:31.1]} 21... h4 {[%clk 0:03:07.2]}
22. Kf3 {[%clk 0:03:02.5]} 22... Rd3+ {[%clk 0:03:02.1]} 23. Ke2 {[%clk
0:02:55.1]} 23... Rxg3 {[%clk 0:03:00.4]} 24. Nf3 {[%clk 0:02:25.7]} 24... Bxf4
{[%clk 0:02:52.8]} 25. Nxh4 {[%clk 0:02:22.7]} 25... Rxh3 {[%clk 0:02:49.9]} 26.
Nf5 {[%clk 0:02:21.4]} 26... Ne6 {[%clk 0:02:26.1]} 27. Rg1 {[%clk 0:02:11.1]}
27... Rh2+ {[%clk 0:02:21.7]} 28. Kf3 {[%clk 0:02:08.4]} 28... Rh3+ {[%clk
0:02:15.6]} 29. Kg4 {[%clk 0:02:04.8]} 29... Rd3 {[%clk 0:02:01.6]} 30. Rh1
{[%clk 0:01:49.3]} 30... b6 {[%clk 0:01:53.8]} 31. Ne7+ {[%clk 0:01:43.9]} 31...
Kb7 {[%clk 0:01:47.5]} 32. Rh7 {[%clk 0:01:36.5]} 32... Rd7 {[%clk 0:01:45.9]}
33. Nd5 {[%clk 0:01:32.4]} 33... Bg5 {[%clk 0:01:27.6]} 34. Nf6 {[%clk
0:01:00.4]} 34... Bxf6 {[%clk 0:01:24.8]} 35. Bxf6 {[%clk 0:00:58.5]} 35... b5
{[%clk 0:01:22]} 36. a3 {[%clk 0:00:48.4]} 36... b4 {[%clk 0:01:15.2]} 37. axb4
{[%clk 0:00:46.5]} 37... cxb4 {[%clk 0:01:14.3]} 38. Rh3 {[%clk 0:00:35.5]}
38... c5 {[%clk 0:01:12.3]} 39. Be5 {[%clk 0:00:26.1]} 39... a5 {[%clk
0:01:09.4]} 40. Rh8 {[%clk 0:00:24.6]} 40... a4 {[%clk 0:01:03.3]} 41. Rb8+
{[%clk 0:00:23]} 41... Kc6 {[%clk 0:01:00.4]} 42. Ra8 {[%clk 0:00:19.5]} 42...
Kb5 {[%clk 0:00:58.1]} 43. Rb8+ {[%clk 0:00:18.7]} 43... Kc4 {[%clk 0:00:57.2]}
44. Ra8 {[%clk 0:00:17.9]} 44... Kb3 {[%clk 0:00:56.4]} 45. Bf6 {[%clk
0:00:13.2]} 45... c4 {[%clk 0:00:53.8]} 46. Rb8 {[%clk 0:00:10.7]} 46... a3
{[%clk 0:00:47.6]} 47. bxa3 {[%clk 0:00:09.5]} 47... Kxa3 {[%clk 0:00:46.9]} 48.
Ra8+ {[%clk 0:00:08.5]} 48... Kb3 {[%clk 0:00:46.2]} 49. Rb8 {[%clk 0:00:06.1]}
49... c3 {[%clk 0:00:44.4]} 50. Rc8 {[%clk 0:00:01.6]} 50... Rc7 {[%clk
0:00:37.5]} 51. Rb8 {[%clk 0:00:00.3]} 51... c2 {[%clk 0:00:35.7]} 0-1

[Event "Live Chess"]
[Site "Chess.com"]
[Date "2024.06.01"]
[Round "-"]
[White "Mangoalo"]
[Black "Silverback7829"]
[Result "1-0"]
[WhiteElo "1068"]
[BlackElo "914"]
[TimeControl "300"]
[EndTime "14:20:35 PDT"]
[Termination "Mangoalo won by checkmate"]

1. f4 {[%clk 0:04:49.7]} 1... d5 {[%clk 0:04:56.1]} 2. Nf3 {[%clk 0:04:46.1]}
2... Nc6 {[%clk 0:04:53.6]} 3. c4 {[%clk 0:04:40.9]} 3... dxc4 {[%clk
0:04:50.6]} 4. Nc3 {[%clk 0:04:38.9]} 4... Nf6 {[%clk 0:04:47.1]} 5. e3 {[%clk
0:04:36.7]} 5... Bg4 {[%clk 0:04:37.8]} 6. Bxc4 {[%clk 0:04:34.6]} 6... Bxf3
{[%clk 0:04:28.8]} 7. Qxf3 {[%clk 0:04:33.4]} 7... e6 {[%clk 0:04:13.7]} 8. g4
{[%clk 0:04:27.7]} 8... Qd7 {[%clk 0:04:05.2]} 9. g5 {[%clk 0:04:24.8]} 9... Nh5
{[%clk 0:03:56.5]} 10. Qxh5 {[%clk 0:04:17.1]} 10... g6 {[%clk 0:03:51.5]} 11.
Qf3 {[%clk 0:04:12]} 11... Nb4 {[%clk 0:03:45.9]} 12. O-O {[%clk 0:04:02.9]}
12... c6 {[%clk 0:03:43.6]} 13. d4 {[%clk 0:03:45.8]} 13... Qc7 {[%clk
0:03:35.4]} 14. Bd2 {[%clk 0:03:39.2]} 14... Nc2 {[%clk 0:03:27.4]} 15. Rac1
{[%clk 0:03:36]} 15... Nb4 {[%clk 0:03:21.6]} 16. a3 {[%clk 0:03:34.5]} 16...
Na6 {[%clk 0:03:13.7]} 17. Bxa6 {[%clk 0:03:22.1]} 17... bxa6 {[%clk 0:03:11.3]}
18. b4 {[%clk 0:03:20.6]} 18... Be7 {[%clk 0:02:58.8]} 19. d5 {[%clk 0:02:45.4]}
19... exd5 {[%clk 0:02:52.6]} 20. Nxd5 {[%clk 0:02:41.7]} 20... Qb8 {[%clk
0:02:38.9]} 21. Nxe7 {[%clk 0:02:38.4]} 21... Kxe7 {[%clk 0:02:36.1]} 22. Qe4+
{[%clk 0:02:28.6]} 22... Kf8 {[%clk 0:02:32]} 23. Bc3 {[%clk 0:02:21.6]} 23...
Qc7 {[%clk 0:02:23.2]} 24. Bxh8 {[%clk 0:02:10.5]} 24... Rd8 {[%clk 0:02:14]}
25. Rxc6 {[%clk 0:01:42.7]} 25... Qd7 {[%clk 0:02:04.1]} 26. Qc4 {[%clk
0:01:33.3]} 26... Qg4+ {[%clk 0:01:55]} 27. Kh1 {[%clk 0:01:25.8]} 27... Kg8
{[%clk 0:01:34.5]} 28. Qc3 {[%clk 0:01:18.5]} 28... Qe2 {[%clk 0:01:24.7]} 29.
Qg7# {[%clk 0:01:11.6]} 1-0

[Event "Live Chess"]
[Site "Chess.com"]
[Date "2024.06.01"]
[Round "-"]
[White "bobby_jamesFischer86"]
[Black "cymbalshift"]
[Result "1-0"]
[WhiteElo "1638"]
[BlackElo "1471"]
[TimeControl "300"]
[EndTime "14:20:41 PDT"]
[Termination "bobby_jamesFischer86 won on time"]

1. d4 {[%clk 0:04:54.8]} 1... Nf6 {[%clk 0:04:58.5]} 2. c4 {[%clk 0:04:53.5]}
2... e6 {[%clk 0:04:57.5]} 3. Nc3 {[%clk 0:04:51.5]} 3... c5 {[%clk 0:04:56.7]}
4. dxc5 {[%clk 0:04:49.8]} 4... Bxc5 {[%clk 0:04:51.6]} 5. e3 {[%clk 0:04:48.6]}
5... a6 {[%clk 0:04:48.2]} 6. Nf3 {[%clk 0:04:47.2]} 6... b6 {[%clk 0:04:44.4]}
7. Be2 {[%clk 0:04:43.2]} 7... Bb7 {[%clk 0:04:43.6]} 8. O-O {[%clk 0:04:41.7]}
8... Qc7 {[%clk 0:04:42.7]} 9. a3 {[%clk 0:04:39.3]} 9... Be7 {[%clk 0:04:41.1]}
10. b4 {[%clk 0:04:36.9]} 10... d6 {[%clk 0:04:39.8]} 11. Bb2 {[%clk 0:04:35.4]}
11... Nbd7 {[%clk 0:04:38.8]} 12. Rc1 {[%clk 0:04:32.7]} 12... Rc8 {[%clk
0:04:38.2]} 13. c5 {[%clk 0:04:19.9]} 13... bxc5 {[%clk 0:04:34.4]} 14. bxc5
{[%clk 0:04:18.7]} 14... Nxc5 {[%clk 0:04:27.4]} 15. Na4 {[%clk 0:04:17.1]}
15... O-O {[%clk 0:04:21.6]} 16. Nxc5 {[%clk 0:04:15.2]} 16... dxc5 {[%clk
0:04:20.6]} 17. Qa4 {[%clk 0:04:02.3]} 17... Rfd8 {[%clk 0:04:08.7]} 18. Rc2
{[%clk 0:03:53.2]} 18... Be4 {[%clk 0:03:41.3]} 19. Rcc1 {[%clk 0:03:25.6]}
19... Qb6 {[%clk 0:03:31.3]} 20. Be5 {[%clk 0:02:56.3]} 20... Ng4 {[%clk
0:02:54.5]} 21. Bg3 {[%clk 0:02:50.2]} 21... h5 {[%clk 0:02:49.2]} 22. h3 {[%clk
0:02:42.8]} 22... Nf6 {[%clk 0:02:39.6]} 23. Qxa6 {[%clk 0:02:40.3]} 23... Qxa6
{[%clk 0:02:25.7]} 24. Bxa6 {[%clk 0:02:38.2]} 24... Ra8 {[%clk 0:02:25.1]} 25.
Bc4 {[%clk 0:02:11.6]} 25... Rxa3 {[%clk 0:02:19.1]} 26. Ne5 {[%clk 0:02:09.9]}
26... Rd2 {[%clk 0:02:04.9]} 27. Bxe6 {[%clk 0:01:11.5]} 27... fxe6 {[%clk
0:01:58.8]} 28. Nc4 {[%clk 0:01:10.2]} 28... Bd3 {[%clk 0:01:44.8]} 29. Nxd2
{[%clk 0:01:07.4]} 29... Bxf1 {[%clk 0:01:42.7]} 30. Nxf1 {[%clk 0:01:06.2]}
30... Ne4 {[%clk 0:01:41.7]} 31. Be5 {[%clk 0:01:02.6]} 31... Bf6 {[%clk
0:01:31.4]} 32. Bxf6 {[%clk 0:01:00]} 32... gxf6 {[%clk 0:01:29.8]} 33. f3
{[%clk 0:00:55.7]} 33... Nc3 {[%clk 0:01:13.4]} 34. Re1 {[%clk 0:00:51]} 34...
Ra2 {[%clk 0:01:05.9]} 35. Ng3 {[%clk 0:00:47.8]} 35... h4 {[%clk 0:01:02.9]}
36. Ne4 {[%clk 0:00:45.5]} 36... Nxe4 {[%clk 0:01:00.5]} 37. fxe4 {[%clk
0:00:44.5]} 37... Kf7 {[%clk 0:00:57]} 38. Rc1 {[%clk 0:00:43.3]} 38... Ra5
{[%clk 0:00:54.3]} 39. Rc4 {[%clk 0:00:42.2]} 39... Ke7 {[%clk 0:00:49.7]} 40.
Kf2 {[%clk 0:00:41.4]} 40... Kd6 {[%clk 0:00:48.8]} 41. Kf3 {[%clk 0:00:40.7]}
41... Ke5 {[%clk 0:00:43.6]} 42. g4 {[%clk 0:00:36.5]} 42... Kd6 {[%clk
0:00:34.3]} 43. Kf4 {[%clk 0:00:35]} 43... Ra2 {[%clk 0:00:27.4]} 44. g5 {[%clk
0:00:32]} 44... Rf2+ {[%clk 0:00:19.2]} 45. Kg4 {[%clk 0:00:30.2]} 45... fxg5
{[%clk 0:00:17.7]} 46. Kxg5 {[%clk 0:00:29.1]} 46... Rf3 {[%clk 0:00:16.5]} 47.
Kxh4 {[%clk 0:00:28]} 47... Rxe3 {[%clk 0:00:15.7]} 48. Kg4 {[%clk 0:00:26.7]}
48... Rd3 {[%clk 0:00:13.8]} 49. h4 {[%clk 0:00:25.1]} 49... Rd4 {[%clk
0:00:12.1]} 50. Rc2 {[%clk 0:00:22.8]} 50... c4 {[%clk 0:00:10.1]} 51. Kg5
{[%clk 0:00:21.9]} 51... Rxe4 {[%clk 0:00:07.7]} 52. h5 {[%clk 0:00:21.1]} 52...
Kc5 {[%clk 0:00:05.6]} 53. h6 {[%clk 0:00:20.2]} 53... Re1 {[%clk 0:00:01.6]}
54. h7 {[%clk 0:00:18.6]} 54... Rh1 {[%clk 0:00:01.2]} 55. Kg6 {[%clk
0:00:17.9]} 1-0

[Event "Live Chess"]
[Site "Chess.com"]
[Date "2024.06.01"]
[Round "-"]
[White "McFim"]
[Black "JanMur7"]
[Result "1-0"]
[WhiteElo "1612"]
[BlackElo "2292"]
[TimeControl "300"]
[EndTime "14:20:48 PDT"]
[Termination "McFim won by checkmate"]

1. e4 {[%clk 0:04:57.1]} 1... g6 {[%clk 0:04:56.9]} 2. d4 {[%clk 0:04:55.7]}
2... Bg7 {[%clk 0:04:56.3]} 3. c3 {[%clk 0:04:54.7]} 3... c5 {[%clk 0:04:55.8]}
4. Nf3 {[%clk 0:04:53]} 4... cxd4 {[%clk 0:04:55.3]} 5. cxd4 {[%clk 0:04:51.9]}
5... d5 {[%clk 0:04:55.2]} 6. e5 {[%clk 0:04:50.8]} 6... Nc6 {[%clk 0:04:53.8]}
7. Nc3 {[%clk 0:04:49.6]} 7... f6 {[%clk 0:04:53.2]} 8. Bb5 {[%clk 0:04:44.2]}
8... a6 {[%clk 0:04:48.2]} 9. Bxc6+ {[%clk 0:04:39.7]} 9... bxc6 {[%clk
0:04:48.1]} 10. O-O {[%clk 0:04:38.5]} 10... Bg4 {[%clk 0:04:46]} 11. Qd3 {[%clk
0:04:35.2]} 11... Bxf3 {[%clk 0:04:43.6]} 12. Qxf3 {[%clk 0:04:31.1]} 12... fxe5
{[%clk 0:04:40.6]} 13. dxe5 {[%clk 0:04:28.2]} 13... Bxe5 {[%clk 0:04:40.5]} 14.
Re1 {[%clk 0:04:25.1]} 14... Qd6 {[%clk 0:04:37]} 15. g3 {[%clk 0:04:09.5]}
15... Nf6 {[%clk 0:04:21.3]} 16. Bh6 {[%clk 0:03:48.6]} 16... Bxc3 {[%clk
0:04:11.6]} 17. bxc3 {[%clk 0:03:45.7]} 17... Kf7 {[%clk 0:04:10.6]} 18. Rab1
{[%clk 0:03:35.1]} 18... Rab8 {[%clk 0:04:02.4]} 19. Bf4 {[%clk 0:03:32.9]}
19... Rxb1 {[%clk 0:04:00.2]} 20. Rxb1 {[%clk 0:03:30.6]} 20... Qd7 {[%clk
0:03:53.9]} 21. Be5 {[%clk 0:03:23.3]} 21... Rc8 {[%clk 0:03:28.2]} 22. Rb6
{[%clk 0:03:12.5]} 22... Qa7 {[%clk 0:03:19.5]} 23. Rb2 {[%clk 0:02:58.6]} 23...
Kg7 {[%clk 0:02:58.9]} 24. g4 {[%clk 0:02:54.9]} 24... h6 {[%clk 0:02:49.1]} 25.
h4 {[%clk 0:02:49.9]} 25... g5 {[%clk 0:02:19.1]} 26. h5 {[%clk 0:02:30.4]}
26... Qd7 {[%clk 0:01:52.1]} 27. Rb6 {[%clk 0:02:23.8]} 27... Qa7 {[%clk
0:01:44.1]} 28. Rb2 {[%clk 0:02:14.5]} 28... c5 {[%clk 0:01:42.4]} 29. Qf5
{[%clk 0:02:11]} 29... Rd8 {[%clk 0:01:34.5]} 30. Qg6+ {[%clk 0:02:04.8]} 30...
Kf8 {[%clk 0:01:23.4]} 31. Bxf6 {[%clk 0:01:55.6]} 31... Rd6 {[%clk 0:01:19.2]}
32. Qxh6+ {[%clk 0:01:07.5]} 32... Ke8 {[%clk 0:01:12.9]} 33. Qh8+ {[%clk
0:01:02.1]} 33... Kd7 {[%clk 0:01:12.2]} 34. Bxe7 {[%clk 0:00:58.2]} 34... Re6
{[%clk 0:01:08]} 35. Qd8+ {[%clk 0:00:50.1]} 35... Kc6 {[%clk 0:01:06.1]} 36.
Qc8+ {[%clk 0:00:30.9]} 36... Qc7 {[%clk 0:01:05]} 37. Qxe6+ {[%clk 0:00:28.2]}
37... Qd6 {[%clk 0:01:04.7]} 38. Qxd6# {[%clk 0:00:26.2]} 1-0

[Event "Live Chess"]
[Site "Chess.com"]
[Date "2024.06.01"]
[Round "-"]
[White "jellhhggffhjjjjjj"]
[Black "educatedlad"]
[Result "0-1"]
[WhiteElo "410"]
[BlackElo "1706"]
[TimeControl "300"]
[EndTime "14:20:57 PDT"]
[Termination "educatedlad won by checkmate"]

1. b3 {[%clk 0:04:48.5]} 1... Nf6 {[%clk 0:04:59.9]} 2. Bb2 {[%clk 0:04:47.2]}
2... d5 {[%clk 0:04:59.8]} 3. Nc3 {[%clk 0:04:45.7]} 3... g6 {[%clk 0:04:59.7]}
4. e3 {[%clk 0:04:44.2]} 4... Bg7 {[%clk 0:04:59.6]} 5. Nf3 {[%clk 0:04:43.4]}
5... O-O {[%clk 0:04:59.5]} 6. Bd3 {[%clk 0:04:38.5]} 6... Nc6 {[%clk
0:04:59.4]} 7. Qe2 {[%clk 0:04:37.3]} 7... Bf5 {[%clk 0:04:59.3]} 8. Bxf5 {[%clk
0:04:35.7]} 8... gxf5 {[%clk 0:04:58.1]} 9. h4 {[%clk 0:04:34.4]} 9... Ne4
{[%clk 0:04:57.2]} 10. Nxe4 {[%clk 0:04:31.9]} 10... dxe4 {[%clk 0:04:57.1]} 11.
Nd4 {[%clk 0:04:30.8]} 11... Nxd4 {[%clk 0:04:55.7]} 12. Bxd4 {[%clk 0:04:29.6]}
12... Bxd4 {[%clk 0:04:55.3]} 13. exd4 {[%clk 0:04:29.2]} 13... Qxd4 {[%clk
0:04:54.6]} 14. c3 {[%clk 0:04:28.8]} 14... Qd3 {[%clk 0:04:53.4]} 15. Qxd3
{[%clk 0:04:27.5]} 15... exd3 {[%clk 0:04:53.3]} 16. O-O-O {[%clk 0:04:25.9]}
16... e5 {[%clk 0:04:53.2]} 17. Rh3 {[%clk 0:04:21.8]} 17... e4 {[%clk
0:04:52.3]} 18. Rg3+ {[%clk 0:04:20.1]} 18... Kh8 {[%clk 0:04:50.7]} 19. f3
{[%clk 0:04:16.1]} 19... Rg8 {[%clk 0:04:49.1]} 20. Rxg8+ {[%clk 0:04:11.7]}
20... Rxg8 {[%clk 0:04:49]} 21. Re1 {[%clk 0:04:08.7]} 21... Rxg2 {[%clk
0:04:45.5]} 22. fxe4 {[%clk 0:04:06.7]} 22... fxe4 {[%clk 0:04:44.7]} 23. Rxe4
{[%clk 0:04:04.8]} 23... Rg1+ {[%clk 0:04:44]} 24. Kb2 {[%clk 0:04:02.6]} 24...
Rg2 {[%clk 0:04:43.5]} 25. h5 {[%clk 0:03:56.8]} 25... Rxd2+ {[%clk 0:04:42.4]}
26. Ka3 {[%clk 0:03:55.2]} 26... Re2 {[%clk 0:04:42.3]} 27. Rd4 {[%clk
0:03:50.5]} 27... d2 {[%clk 0:04:41]} 28. h6 {[%clk 0:03:47]} 28... Re8 {[%clk
0:04:27.7]} 29. Rxd2 {[%clk 0:03:43.3]} 29... f5 {[%clk 0:04:26.6]} 30. Rf2
{[%clk 0:03:40.2]} 30... Rf8 {[%clk 0:04:25.4]} 31. Rf4 {[%clk 0:03:32.1]} 31...
Rf6 {[%clk 0:04:24.3]} 32. c4 {[%clk 0:03:28.2]} 32... Rxh6 {[%clk 0:04:21.7]}
33. Rxf5 {[%clk 0:03:25.9]} 33... Kg7 {[%clk 0:04:20.8]} 34. Re5 {[%clk
0:03:22.6]} 34... Rf6 {[%clk 0:04:17.7]} 35. Re7+ {[%clk 0:03:20.5]} 35... Rf7
{[%clk 0:04:17.2]} 36. Re5 {[%clk 0:03:18.8]} 36... Kg6 {[%clk 0:04:16.3]} 37.
Rb5 {[%clk 0:03:14.9]} 37... b6 {[%clk 0:04:13.8]} 38. Kb4 {[%clk 0:03:11.9]}
38... a6 {[%clk 0:04:12.1]} 39. Rd5 {[%clk 0:03:08.7]} 39... c6 {[%clk
0:04:08.2]} 40. Rd6+ {[%clk 0:03:06]} 40... Rf6 {[%clk 0:04:07.6]} 41. c5 {[%clk
0:02:58.2]} 41... bxc5+ {[%clk 0:04:04.5]} 42. Kxc5 {[%clk 0:02:56.7]} 42...
Rxd6 {[%clk 0:04:03.8]} 43. Kxd6 {[%clk 0:02:55.4]} 43... h5 {[%clk 0:04:03.7]}
44. Kxc6 {[%clk 0:02:53.8]} 44... h4 {[%clk 0:04:03.3]} 45. b4 {[%clk
0:02:51.7]} 45... h3 {[%clk 0:04:02.1]} 46. Kb6 {[%clk 0:02:50.6]} 46... h2
{[%clk 0:04:01.1]} 47. Kxa6 {[%clk 0:02:49.4]} 47... h1=Q {[%clk 0:04:00.3]} 48.
a4 {[%clk 0:02:48.2]} 48... Kf6 {[%clk 0:03:57.1]} 49. b5 {[%clk 0:02:46.7]}
49... Ke6 {[%clk 0:03:56.3]} 50. a5 {[%clk 0:02:45.6]} 50... Kd6 {[%clk
0:03:55.4]} 51. b6 {[%clk 0:02:44.5]} 51... Kc6 {[%clk 0:03:53.6]} 52. Ka7
{[%clk 0:02:41]} 52... Qh5 {[%clk 0:03:49.4]} 53. a6 {[%clk 0:02:38.5]} 53...
Qb5 {[%clk 0:03:40.8]} 54. b7 {[%clk 0:02:36.4]} 54... Qb6+ {[%clk 0:03:39.6]}
55. Ka8 {[%clk 0:02:34]} 55... Kc7 {[%clk 0:03:35.6]} 56. a7 {[%clk 0:02:28.7]}
56... Qxb7# {[%clk 0:03:34.2]} 0-1